bitfinex/quotes_ETHUSD_20240722
["timestamp","ask_amount","ask_price","bid_price","bid_amount"]
[1721612104406,2.8251,3539.7,3538.3,2.82621]
[1721612104407,2.82534,3539.4,3538.4,2.82609]
[1721612104699,2.82525,3539.5,3538.6,2.82595]
[1721612105315,2.8251,3539.7,3538.8,2.82579]
[1721612105645,2.8251,3539.7,3538.8,5.743474]
[1721612105846,2.82518,3539.6,3538.8,5.743474]
[1721612106055,2.82494,3539.9,3538.8,5.743474]
[1721612106208,2.8251,3539.7,3538.8,5.743474]
[1721612106540,3.0,3539.6,3538.9,2.88222663]
[1721612106745,3.0,3539.8,3538.9,3.74481469]
[1721612106957,0.58473077,3540.0,3538.9,0.86258806]
[1721612107103,0.58473077,3540.0,3539.1,2.82555]
[1721612107104,2.82486,3540.0,3539.1,2.82555]
[1721612108003,0.58473077,3540.3,3539.2,2.82549]
[1721612108004,2.82478,3540.1,3539.2,2.82549]
[1721612108252,2.3262,3540.6,3539.2,2.82549]
[1721612108253,3.40912077,3540.6,3539.5,2.82523]
[1721612108555,2.82439,3540.6,3539.6,2.82517]
[1721612108748,3.49767432,3541.1,3539.1,7.3]
[1721612108749,2.82447,3540.5,3539.1,7.3]
[1721612108913,2.82447,3540.5,3539.4,2.82533]
[1721612109529,2.82468,3540.3,3539.4,2.82533]
[1721612109876,2.82447,3540.5,3539.5,2.82524]
[1721612110227,2.82447,3540.5,3539.3,2.82541]
[1721612110228,2.82446,3540.5,3539.3,2.82541]
[1721612110424,2.82446,3540.5,3539.4,0.55]
[1721612110651,2.82474,3540.2,3539.4,1.690541]
[1721612111163,2.82457,3540.4,3539.4,1.690541]
[1721612111326,2.82462,3540.3,3539.4,1.690541]
[1721612111664,2.82473,3540.2,3539.4,1.140541]
[1721612111824,2.82494,3539.9,3539.2,0.73]
[1721612112025,3.87825051,3540.9,3539.2,0.73]
[1721612112026,2.82485,3540.0,3539.2,0.73]
[1721612112867,2.82468,3540.3,3539.1,7.3]
[1721612113066,0.87825051,3540.7,3539.1,7.3]
[1721612113067,5.3458,3540.2,3539.1,7.3]
[1721612113272,2.82575,3538.9,3538.3,2.337]
[1721612113584,2.82523,3539.6,3538.3,3.3007]
[1721612113585,2.82571,3539.0,3538.3,3.3007]
[1721612114658,2.82591,3538.7,3538.2,7.3]
[1721612114840,2.82603,3538.6,3538.2,7.3]
[1721612115170,2.82614,3538.4,3538.2,7.3]
[1721612115678,2.82597,3538.6,3538.2,7.3]
[1721612116667,2.82581,3538.8,3538.2,7.3]
[1721612117052,2.82598,3538.6,3538.2,7.3]
[1721612117577,2.82584,3538.8,3538.2,7.3]
[1721612117872,2.82584,3538.8,3537.8,12.4636]
[1721612118051,2.82584,3538.8,3537.8,13.992637]
[1721612118255,2.82603,3538.6,3537.8,11.166037]
[1721612118460,2.82582,3538.8,3537.8,11.166037]
[1721612119387,2.82611,3538.5,3537.8,7.3]
[1721612119753,2.82589,3538.7,3537.8,7.3]
[1721612119967,3.0,3539.1,3537.8,7.3]
[1721612119968,3.58473077,3539.1,3537.8,7.3]
[1721612120275,2.8259,3538.7,3537.5,2.82684]
[1721612120482,2.8259,3538.7,3537.6,1.542654]
[1721612120972,2.82597,3538.6,3537.7,2.82668]
[1721612121556,2.82607,3538.5,3537.6,1.542654]
[1721612122067,2.82615,3538.4,3537.6,1.542654]
[1721612122996,2.826,3538.6,3537.6,4.369424]
[1721612123138,2.82585,3538.8,3537.7,1.4496214]
[1721612123340,2.82585,3538.8,3537.8,2.82661]
[1721612123751,2.82573,3538.9,3537.7,4.2763014]
[1721612124093,5.82582,3538.8,3537.8,3.3766]
[1721612124277,5.82582,3538.8,3537.9,2.82651]
[1721612124478,5.82582,3538.8,3538.0,0.48261314]
[1721612125389,3.0,3538.8,3537.8,2.82661]
[1721612125546,0.58473077,3539.1,3537.8,2.82661]
[1721612125748,2.82582,3538.8,3537.9,2.82652]
[1721612125944,2.82573,3538.9,3537.8,2.8266]
[1721612126196,3.0,3539.2,3538.3,2.8262]
[1721612126391,2.82574,3538.9,3538.3,0.803485]
[1721612126679,0.58473077,3539.4,3538.3,0.803485]
[1721612126680,2.82542,3539.3,3538.3,0.803485]
[1721612126896,3.0,3539.2,3538.5,2.82604]
[1721612127251,3.0,3539.3,3538.6,2.82596]
[1721612127475,5.82535,3539.4,3538.6,0.3629445]
[1721612127674,5.82532,3539.5,3538.6,3.1889145]
[1721612129606,0.58473077,3539.7,3538.9,2.82572]
[1721612129748,0.58473077,3539.8,3538.9,2.82572]
[1721612129949,0.58473077,3539.8,3539.0,2.82562]
[1721612130290,3.40967077,3539.9,3539.0,2.82562]
[1721612130502,0.58473077,3539.9,3538.9,3.42713145]
[1721612130696,2.82511,3539.7,3538.9,0.60144145]
[1721612130988,3.0,3539.6,3539.0,2.82565]
[1721612131193,3.0,3539.8,3539.0,0.62529815]
[1721612131353,3.40951077,3540.1,3539.1,2.82552]
[1721612131698,2.82487,3540.0,3539.1,2.82552]
[1721612131870,2.82487,3540.0,3539.2,0.06727385]
[1721612132275,2.82487,3540.0,3539.1,2.82552]
[1721612132595,2.82487,3540.0,3539.2,0.06743903]
[1721612132800,3.0,3539.9,3539.2,0.06743903]
[1721612133167,2.82527,3539.5,3538.7,2.4414]
[1721612133506,2.82527,3539.5,3538.7,5.26725]
[1721612133702,2.82525,3539.6,3538.8,0.06742392]
[1721612134000,2.82518,3539.6,3538.8,0.06742392]
[1721612134167,2.82549,3539.3,3538.8,0.06742392]
[1721612136083,2.82526,3539.5,3538.8,0.06742392]
[1721612136402,1.74320751,3539.9,3538.8,1.04830631]
[1721612136403,2.82518,3539.6,3538.8,1.04830631]
[1721612137102,2.82526,3539.5,3538.8,1.04830631]
[1721612137665,2.82507,3539.8,3538.9,2.8257]
[1721612137908,5.82511,3539.7,3538.9,2.8257]
[1721612138111,5.82511,3539.7,3539.0,0.98155176]
[1721612138265,3.0,3539.7,3539.0,0.98155176]
[1721612138462,3.0,3539.8,3539.0,0.98155176]
[1721612138662,2.82531,3539.5,3539.0,0.98155176]
[1721612138867,2.82531,3539.5,3539.0,0.06742313]
[1721612139310,2.8254,3539.4,3538.7,2.4414]
[1721612139480,2.8254,3539.4,3539.1,0.06737934]
[1721612139662,2.8254,3539.4,3538.7,2.4414]
[1721612139867,2.8254,3539.4,3539.2,0.06737894]
[1721612140067,2.82542,3539.3,3538.7,2.4414]
[1721612140910,2.82529,3539.5,3538.7,2.4414]
[1721612141202,2.82529,3539.5,3538.7,3.698137]
[1721612141563,3.40985077,3539.7,3538.7,6.523967]
[1721612141768,2.82512,3539.7,3538.9,2.82572]
[1721612142523,5.82502,3539.8,3538.7,6.523967]
[1721612142810,3.0,3539.8,3539.1,2.82556]
[1721612143123,3.0,3539.9,3539.1,2.82556]
[1721612143272,5.82494,3539.9,3539.0,2.82564]
[1721612143472,5.82494,3539.9,3539.1,0.70338467]
[1721612144927,3.0,3539.9,3538.8,4.2082067]
[1721612145099,3.0,3539.9,3538.7,2.4414]
[1721612145100,0.58473077,3539.7,3538.7,2.4414]
[1721612145277,0.58473077,3539.7,3538.6,7.3]
[1721612145278,2.8254,3539.4,3538.6,7.3]
[1721612145483,2.8254,3539.4,3538.6,8.548941]
[1721612147126,3.40994077,3539.6,3538.6,11.374901]
[1721612147312,2.82527,3539.5,3538.6,11.374901]
[1721612147498,2.82527,3539.5,3538.7,1.4201021]
[1721612147821,3.40983077,3539.7,3538.7,4.2459821]
[1721612148022,2.8252,3539.6,3538.8,2.82581]
[1721612148588,0.58473077,3539.7,3538.8,2.82581]
[1721612148821,6.40984077,3539.7,3538.9,1.56208231]
[1721612149900,6.40984077,3539.7,3538.9,4.38781231]
[1721612150292,3.58473077,3539.7,3538.9,4.38781231]
[1721612150623,3.58473077,3539.7,3539.1,2.3964]
[1721612150788,5.82512,3539.7,3539.1,2.3964]
[1721612150987,2.82518,3539.6,3539.2,0.06687894]
[1721612152303,2.82534,3539.4,3539.2,0.06687894]
[1721612152620,2.82526,3539.5,3538.6,7.3]
[1721612152824,2.82526,3539.5,3539.3,0.06688525]
[1721612153126,0.58473077,3539.7,3538.7,1.252252]
[1721612153127,2.82533,3539.4,3538.7,1.252252]
[1721612153327,2.82533,3539.4,3538.8,0.55]
[1721612153493,0.58473077,3539.6,3538.8,0.55]
[1721612153822,0.58473077,3539.6,3538.7,1.252252]
[1721612153823,2.82533,3539.4,3538.7,1.252252]
[1721612154226,2.82542,3539.3,3538.7,1.252252]
[1721612154431,2.82557,3539.1,3538.6,7.3]
[1721612154997,2.8255,3539.2,3538.6,7.3]
[1721612155625,2.82543,3539.3,3538.6,7.3]
[1721612155928,2.8255,3539.2,3538.6,7.3]
[1721612156435,0.58473077,3539.5,3538.5,5.22244]
[1721612156436,2.82543,3539.3,3538.5,5.22244]
[1721612156732,2.82543,3539.3,3538.6,0.55]
[1721612157939,3.40999077,3539.5,3538.6,0.55]
[1721612158141,2.8255,3539.2,3538.6,0.55]
[1721612159190,2.8255,3539.2,3538.5,3.931272]
[1721612159542,0.87825051,3539.6,3538.2,7.3]
[1721612159543,2.82573,3538.9,3538.2,7.3]
[1721612159824,2.82573,3538.9,3538.3,0.55]
[1721612160234,0.87825051,3539.2,3538.2,7.3]
[1721612160235,0.58473077,3539.0,3538.2,7.3]
[1721612160393,3.41056077,3538.8,3538.2,7.3]
[1721612160589,2.82604,3538.6,3538.2,7.3]
[1721612161229,2.82606,3538.5,3538.2,7.3]
[1721612161547,2.82607,3538.5,3537.7,7.3]
[1721612161698,3.41080077,3538.5,3537.7,9.50431]
[1721612162015,2.82616,3538.4,3537.7,9.50431]
[1721612163838,0.58473077,3538.5,3537.7,9.50431]
[1721612164042,2.82599,3538.6,3537.8,4.004321]
[1721612164043,0.58473077,3538.6,3537.8,4.004321]
[1721612164707,3.41072077,3538.6,3537.8,1.177741]
[1721612164913,0.58473077,3538.6,3537.8,1.177741]
[1721612165356,2.82605,3538.5,3537.8,1.177741]
[1721612165637,0.58473077,3538.6,3537.9,1.5781881]
[1721612165810,2.82613,3538.4,3537.9,1.64506635]
[1721612169308,3.41074077,3538.6,3537.9,1.64506635]
[1721612169506,0.58473077,3538.6,3537.9,4.47152635]
[1721612169710,0.58473077,3538.6,3538.0,1.68044764]
[1721612170026,0.58473077,3538.7,3538.1,0.0668408]
[1721612170227,4.46298128,3538.9,3538.1,2.8931408]
[1721612170402,0.58473077,3538.9,3538.4,2.2976]
[1721612170601,0.58473077,3539.0,3538.4,2.2976]
[1721612170815,0.58473077,3539.0,3538.5,0.51907305]
[1721612171140,0.58473077,3539.1,3538.5,0.64250906]
[1721612171342,0.58473077,3539.2,3538.5,3.41204241]
[1721612171842,0.58473077,3539.2,3538.6,2.82594]
[1721612172141,3.41007077,3539.4,3538.6,2.89285896]
[1721612172441,3.41007077,3539.4,3538.7,0.8535652]
[1721612172608,0.58473077,3539.4,3538.8,2.82579]
[1721612172814,0.58473077,3539.5,3538.9,2.82573]
[1721612173009,0.58473077,3539.6,3538.9,2.82573]
[1721612173339,0.58473077,3539.7,3539.0,0.06682055]
[1721612173540,3.40992077,3539.6,3539.0,0.06682055]
[1721612173911,3.40992077,3539.6,3538.7,3.6794352]
[1721612174103,0.58473077,3539.5,3539.1,0.06682015]
[1721612174305,0.58473077,3539.5,3538.7,0.8535652]
[1721612174606,2.82542,3539.3,3538.7,0.8535652]
[1721612174805,2.82542,3539.3,3538.8,0.06682134]
[1721612175054,2.82542,3539.3,3538.5,0.51907305]
[1721612175218,2.82542,3539.3,3538.9,0.06682094]
[1721612175441,2.82542,3539.3,3538.6,0.55]
[1721612175622,0.58473077,3539.4,3539.0,0.06682055]
[1721612175822,0.58473077,3539.4,3538.6,0.55]
[1721612176073,3.40999077,3539.5,3539.1,0.06682015]
[1721612176243,3.40999077,3539.5,3538.7,0.61927031]
[1721612176438,0.58473077,3539.4,3539.2,0.06681976]
[1721612176760,0.87825051,3539.6,3538.4,2.2976]
[1721612176761,0.58473077,3539.3,3538.4,2.2976]
[1721612176960,2.82574,3538.9,3538.4,2.2976]
[1721612177159,2.82574,3538.9,3537.9,2.8265]
[1721612177160,2.82583,3538.8,3538.0,2.4016]
[1721612177365,2.82589,3538.7,3538.0,2.4016]
[1721612177566,0.58473077,3538.9,3538.0,2.4016]
[1721612177963,3.41039077,3539.0,3538.0,5.22805]
[1721612178124,0.58473077,3539.0,3538.1,1.535465]
[1721612178325,0.58473077,3539.1,3538.1,1.535465]
[1721612178528,0.58473077,3539.3,3538.7,2.3715]
[1721612178767,3.41009077,3539.4,3538.7,2.3715]
[1721612178924,2.8255,3539.2,3538.7,2.3715]
[1721612179153,2.8255,3539.2,3538.7,2.891263]
[1721612179531,2.82559,3539.1,3538.7,2.3715]
[1721612179724,2.82559,3539.1,3538.2,2.82629]
[1721612179725,2.82559,3539.1,3538.3,2.3715]
[1721612179969,2.82559,3539.1,3538.4,0.55]
[1721612180567,0.58473077,3539.2,3538.4,0.55]
[1721612180931,0.58473077,3539.2,3538.5,0.06459618]
[1721612181278,0.58473077,3539.1,3538.5,0.6458258]
[1721612181563,3.41023077,3539.2,3538.5,0.6458258]
[1721612181768,0.58473077,3539.2,3538.5,0.6458258]
[1721612181968,0.58473077,3539.1,3538.5,0.6458258]
[1721612182771,2.82566,3539.0,3538.5,0.6458258]
[1721612183140,0.58473077,3539.1,3538.5,0.6458258]
[1721612183344,2.82575,3538.9,3538.5,0.6458258]
[1721612183551,2.82575,3538.9,3538.5,0.06459618]
[1721612183859,2.82575,3538.9,3538.3,2.3715]
[1721612184080,2.82575,3538.9,3538.6,0.06459578]
[1721612184382,2.82575,3538.9,3538.3,2.3715]
[1721612184535,2.82575,3538.9,3538.7,0.06452026]
[1721612184736,2.82575,3538.9,3538.3,3.0448335]
[1721612184936,2.82575,3538.9,3538.8,0.06451986]
[1721612185133,2.82582,3538.8,3538.3,2.3715]
[1721612185553,2.82582,3538.8,3538.1,1.535465]
[1721612185769,2.82582,3538.8,3538.2,0.6658065]
[1721612186706,3.41039077,3539.0,3538.2,0.6658065]
[1721612187278,0.58473077,3539.0,3538.4,2.82612]
[1721612187487,0.58473077,3539.1,3538.4,2.82606]
[1721612187682,0.58473077,3539.1,3538.5,2.82605]
[1721612187894,3.41016077,3539.3,3538.7,2.2961]
[1721612188223,0.58473077,3539.4,3538.7,5.12199]
[1721612189008,0.58473077,3539.4,3538.7,2.2961]
[1721612189511,3.41007077,3539.4,3538.7,2.2961]
[1721612190013,0.58473077,3539.4,3538.7,5.12196]
[1721612190314,0.58473077,3539.4,3538.8,0.8230615]
[1721612192494,0.58473077,3539.5,3538.8,0.8230615]
[1721612192769,0.58473077,3539.4,3538.8,3.6488715]
[1721612193003,0.58473077,3539.5,3538.9,2.82573]
[1721612193211,0.58473077,3539.5,3538.9,0.90533865]
[1721612193881,0.58473077,3539.5,3539.0,2.82562]
[1721612194087,3.58473077,3539.7,3539.0,2.82562]
[1721612194311,0.58473077,3539.8,3539.1,2.82556]
[1721612194538,0.58473077,3539.8,3538.9,0.90533865]
[1721612194539,0.58473077,3539.8,3539.2,2.82549]
[1721612194834,0.58473077,3539.9,3539.3,0.282549]
[1721612195005,3.58473077,3539.9,3539.3,0.282549]
[1721612195191,3.0,3539.9,3539.3,0.282549]
[1721612195389,5.82495,3539.9,3539.3,0.282549]
[1721612195595,6.40968077,3539.9,3539.0,2.82561]
[1721612195892,6.40968077,3539.9,3539.1,0.06441352]
[1721612197126,3.58473077,3539.9,3539.2,2.82548]
[1721612197430,6.40961077,3540.0,3539.3,0.06441273]
[1721612197636,3.58473077,3540.0,3539.3,0.06441273]
[1721612198157,3.0,3539.9,3539.3,0.06441273]
[1721612198308,0.58473077,3540.0,3539.3,0.06441273]
[1721612198505,0.58473077,3540.0,3539.3,0.69247058]
[1721612198717,0.58473077,3540.1,3539.4,2.82532]
[1721612198940,0.58473077,3540.1,3539.5,0.06438191]
[1721612199172,5.82472,3540.2,3539.6,2.82516]
[1721612199173,0.58473077,3540.2,3539.6,2.82516]
[1721612199310,0.58473077,3540.2,3539.7,3.69851247]
[1721612199516,0.58473077,3540.3,3539.8,0.06437071]
[1721612199716,0.58473077,3540.3,3539.7,3.64201619]
[1721612199918,0.58473077,3540.3,3539.8,0.06436737]
[1721612200136,0.58473077,3540.4,3539.8,2.82501]
[1721612200335,0.58473077,3540.4,3539.9,0.06434862]
[1721612200729,0.58473077,3540.4,3539.9,2.88925862]
[1721612201054,0.58473077,3540.5,3540.0,2.82479]
[1721612201235,0.58473077,3540.6,3540.0,2.82479]
[1721612201434,0.58473077,3540.7,3540.0,2.88911654]
[1721612201744,0.58473077,3540.6,3540.0,0.06432654]
[1721612201941,0.58473077,3540.6,3540.0,2.82482]
[1721612202147,0.58473077,3540.6,3540.1,0.06432614]
[1721612202342,3.58473077,3540.7,3540.1,0.06432614]
[1721612203134,3.0,3540.7,3540.1,0.06432614]
[1721612203429,3.0,3540.7,3540.1,0.35324075]
[1721612204618,5.82431,3540.7,3540.1,0.06432614]
[1721612205064,5.82431,3540.7,3539.8,2.82497]
[1721612205351,2.82441,3540.6,3539.8,2.82497]
[1721612205585,2.82441,3540.6,3539.7,0.81694619]
[1721612205878,2.82441,3540.6,3539.8,1.95400694]
[1721612206579,2.82441,3540.6,3539.8,4.77901694]
[1721612208470,2.82446,3540.5,3539.8,1.95400694]
[1721612208819,2.82473,3540.2,3539.8,0.06432732]
[1721612209099,5.98253077,3540.7,3539.5,9.7546]
[1721612209100,2.82493,3539.9,3539.5,7.3]
[1721612209244,2.82511,3539.7,3539.5,7.3]
[1721612209444,2.82511,3539.7,3539.6,0.06197634]
[1721612209865,6.455013,3539.7,3539.6,0.06197634]
[1721612210162,10.03974377,3539.7,3539.6,0.06197634]
[1721612212186,9.455013,3539.7,3539.6,0.06197634]
[1721612212352,10.03974377,3539.7,3539.6,0.06197634]
[1721612212865,3.0,3539.7,3539.6,0.06197634]
[1721612213247,3.58473077,3539.7,3539.6,0.06197634]
[1721612213453,3.0,3539.7,3539.6,0.06212929]
[1721612213654,5.82509,3539.7,3539.6,0.06212929]
[1721612213975,3.0,3539.7,3538.8,7.3]
[1721612214198,3.40992077,3539.6,3538.8,7.3]
[1721612214415,2.82543,3539.3,3538.9,0.0621254]
[1721612214754,2.82559,3539.1,3538.4,22.2548]
[1721612214953,2.82559,3539.1,3539.0,0.06212501]
[1721612214954,2.82557,3539.1,3539.0,0.06212501]
[1721612215254,2.82557,3539.1,3538.1,7.3]
[1721612215255,2.82607,3538.5,3538.1,7.3]
[1721612215453,2.82564,3539.1,3537.6,7.3]
[1721612215454,2.82616,3538.4,3537.6,7.3]
[1721612217372,2.82606,3538.5,3537.6,7.3]
[1721612217572,2.82627,3538.3,3537.7,0.55198]
[1721612217769,2.82627,3538.3,3537.7,2.832658]
[1721612219258,2.82606,3538.5,3537.7,2.832658]
[1721612219758,2.82615,3538.4,3537.7,2.832658]
[1721612220883,0.58318979,3538.9,3537.7,2.832658]
[1721612220884,2.82597,3538.6,3537.7,2.832658]
[1721612221054,2.82597,3538.6,3537.7,0.55198]
[1721612221503,2.82607,3538.5,3537.7,0.55198]
[1721612222057,2.82615,3538.4,3537.7,0.55198]
[1721612222264,3.40907979,3538.8,3537.7,0.00198]
[1721612222464,2.8264,3538.1,3537.7,0.00198]
[1721612223072,2.82661,3537.8,3537.7,0.00198]
[1721612223599,5.65322,3537.8,3537.7,0.00198]
[1721612223969,2.82661,3537.8,3537.7,0.00198]
[1721612225003,8.65322,3537.8,3537.7,0.00198]
[1721612225498,5.82661,3537.8,3537.7,0.00198]
[1721612225860,5.82661,3537.8,3537.7,0.0623109]
[1721612226090,5.82661,3537.8,3537.7,0.00198]
[1721612226459,8.65322,3537.8,3537.7,0.00198]
[1721612226659,5.82661,3537.8,3537.7,0.00198]
[1721612227599,8.65322,3537.8,3537.7,0.0623109]
[1721612227766,8.65322,3537.8,3537.7,0.00198]
[1721612228276,5.82661,3537.8,3537.7,0.00198]
[1721612228472,8.65322,3537.8,3537.7,0.00198]
[1721612228671,5.82661,3537.8,3537.7,0.00198]
[1721612231398,3.0,3537.8,3537.7,0.00198]
[1721612231607,5.82661,3537.8,3537.7,0.00198]
[1721612232200,8.65322,3537.8,3537.7,0.0623109]
[1721612232375,9.518542,3537.8,3537.7,0.00198]
[1721612235160,8.65322,3537.8,3537.7,0.00198]
[1721612235870,3.0,3537.8,3537.7,0.00198]
[1721612236065,3.0,3537.8,3537.7,0.06276845]
[1721612238106,5.82661,3537.8,3537.7,0.06276845]
[1721612238280,5.65322,3537.8,3537.7,0.06276845]
[1721612238483,8.65322,3537.8,3537.7,0.06276845]
[1721612241515,5.82661,3537.8,3537.7,0.06276845]
[1721612243030,3.0,3537.8,3537.7,0.06276845]
[1721612243230,2.82661,3537.8,3537.7,0.06276845]
[1721612243539,5.82661,3537.8,3537.7,0.06276845]
[1721612244118,3.0,3537.8,3537.7,0.06276845]
[1721612244320,2.82659,3537.9,3537.7,0.06276845]
[1721612244477,3.0,3537.8,3537.7,0.06276845]
[1721612244683,3.0,3538.0,3537.7,0.06276845]
[1721612244927,2.82638,3538.1,3537.7,2.37536845]
[1721612245129,2.82645,3538.0,3537.7,2.37536845]
[1721612246323,2.82629,3538.2,3537.7,2.37536845]
[1721612246525,5.82637,3538.1,3537.7,2.37536845]
[1721612246830,2.82637,3538.1,3537.7,2.37536845]
[1721612247128,3.0,3538.0,3537.7,2.37536845]
[1721612248884,5.8263,3538.2,3537.7,2.37536845]
[1721612251415,2.82637,3538.1,3537.7,2.37536845]
[1721612251612,3.0,3538.0,3537.7,2.37536845]
[1721612252332,5.82645,3538.0,3537.7,2.37536845]
[1721612252546,5.82645,3538.0,3537.7,0.06276845]
[1721612252699,3.0,3538.0,3537.7,0.06276845]
[1721612252900,5.82638,3538.1,3537.7,0.06276845]
[1721612253134,2.82645,3538.0,3537.7,0.06276845]
[1721612253316,2.82661,3537.8,3537.7,0.06276845]
[1721612253517,5.65322,3537.8,3537.7,0.06276845]
[1721612254934,2.82661,3537.8,3537.7,0.06276845]
[1721612255151,2.82639,3538.1,3537.7,0.06276845]
[1721612255442,0.58318979,3538.3,3537.7,0.06276845]
[1721612255443,5.82645,3538.0,3537.7,0.06276845]
[1721612257600,3.0,3538.0,3537.7,0.06276845]
[1721612259311,5.82645,3538.0,3537.7,0.06276845]
[1721612259739,6.40963979,3538.0,3537.7,0.06276845]
[1721612260756,3.58318979,3538.0,3537.7,0.06276845]
[1721612260963,0.58318979,3538.0,3537.7,0.06276845]
[1721612261927,0.58318979,3537.9,3537.7,0.06276845]
[1721612262130,0.58318979,3538.0,3537.7,0.06276845]
[1721612262319,0.58318979,3537.9,3537.7,0.06276845]
[1721612262839,0.58318979,3538.1,3537.7,0.06276845]
[1721612263045,0.58318979,3538.4,3538.0,2.4152]
[1721612263214,0.87825051,3538.6,3538.0,3.22831184]
[1721612263215,0.58318979,3538.5,3538.0,3.22831184]
[1721612263419,0.58318979,3538.5,3538.1,0.06065703]
[1721612263952,0.58318979,3538.6,3538.1,0.06065703]
[1721612264272,0.58318979,3538.4,3538.1,0.06065703]
[1721612264473,3.40932979,3538.4,3538.1,0.06065703]
[1721612264973,0.58318979,3538.3,3538.1,0.06065703]
[1721612265267,3.40947979,3538.2,3538.1,0.06065703]
[1721612265647,0.58583533,3538.2,3537.7,0.00198]
[1721612265981,0.58583533,3538.2,3537.7,0.519721]
[1721612266278,3.41213533,3538.2,3537.8,0.06065822]
[1721612266445,0.58583533,3538.2,3537.8,0.06065822]
[1721612266789,3.41214533,3538.2,3537.9,0.06065782]
[1721612266983,0.58583533,3538.1,3537.7,0.519721]
[1721612267143,2.82637,3538.1,3538.0,0.06065743]
[1721612267343,3.41220533,3538.1,3537.7,0.00198]
[1721612267576,3.41229533,3538.0,3537.7,0.00198]
[1721612267781,2.82657,3537.9,3537.7,0.00198]
[1721612268207,5.65322,3537.8,3537.7,0.00198]
[1721612268483,6.58902405,3537.8,3537.7,0.00198]
[1721612268695,7.31068227,3537.8,3537.7,0.00198]
[1721612270172,6.37487822,3537.8,3537.7,0.00198]
[1721612271465,7.54635254,3537.8,3537.7,0.00198]
[1721612271870,10.66607242,3537.8,3537.7,0.00198]
[1721612272090,16.5970822,3537.8,3537.7,0.00198]
[1721612272248,16.5970822,3537.8,3536.7,7.3]
[1721612272249,5.65482,3536.8,3536.7,7.3]
[1721612272449,5.65482,3536.8,3535.7,2.82829]
[1721612272450,2.8276,3536.6,3536.0,7.3]
[1721612272681,2.8276,3536.6,3536.0,8.538329]
[1721612272682,3.41311018,3536.6,3536.0,8.538329]
[1721612273100,0.58551018,3536.6,3536.0,8.538329]
[1721612273284,3.41304018,3536.7,3536.0,8.538329]
[1721612273701,3.41304018,3536.7,3536.0,11.366369]
[1721612273702,0.58551018,3536.7,3536.0,11.366369]
[1721612273892,2.82741,3536.8,3536.0,11.366369]
[1721612274092,3.41292018,3536.8,3536.1,1.3621369]
[1721612274995,1.17117146,3537.1,3536.1,1.3621369]
[1721612274996,3.41300018,3536.7,3536.1,1.3621369]
[1721612275208,3.41300018,3536.7,3536.0,7.3]
[1721612275209,2.82766,3536.5,3536.0,7.3]
[1721612276272,3.41300018,3536.7,3536.0,7.3]
[1721612276667,2.82757,3536.6,3536.0,7.3]
[1721612277205,2.82797,3536.1,3534.9,2.4982]
[1721612277368,2.82823,3535.8,3534.9,5.32707]
[1721612278177,0.58551018,3536.2,3535.3,2.82861]
[1721612278363,2.82781,3536.3,3535.4,0.282861]
[1721612278706,2.82791,3536.2,3535.4,0.282861]
[1721612279072,2.82797,3536.1,3535.4,0.282861]
[1721612279463,2.82783,3536.3,3535.6,2.4974]
[1721612280912,3.0,3536.5,3535.6,2.4974]
[1721612280913,3.58551018,3536.5,3535.6,2.4974]
[1721612281111,2.82798,3536.1,3535.6,2.4974]
[1721612281298,3.58551018,3536.5,3535.7,2.82826]
[1721612281607,5.82769,3536.5,3535.6,2.4974]
[1721612281779,5.82769,3536.5,3535.6,5.32571]
[1721612281985,3.0,3536.5,3535.7,2.82826]
[1721612282402,2.82781,3536.3,3535.6,2.4974]
[1721612283504,5.82766,3536.5,3535.7,2.82827]
[1721612283692,2.82774,3536.4,3535.6,2.4974]
[1721612283899,2.82774,3536.4,3535.6,5.32575]
[1721612284205,5.82749,3536.7,3535.6,5.32575]
[1721612284206,3.0,3536.7,3535.6,3.312828]
[1721612284368,2.82751,3536.7,3535.8,2.82814]
[1721612284574,3.0,3536.6,3535.8,2.82814]
[1721612285172,5.8276,3536.6,3535.8,2.82814]
[1721612286106,5.8276,3536.6,3535.9,0.05324213]
[1721612286272,5.8276,3536.6,3535.6,5.32576]
[1721612286473,5.8276,3536.6,3535.6,6.141189]
[1721612286674,2.82767,3536.5,3535.7,0.05324292]
[1721612286892,3.0,3536.4,3535.7,2.88147292]
[1721612287876,3.0,3536.6,3535.7,0.05324292]
[1721612288103,3.0,3536.6,3535.9,2.82812]
[1721612288432,3.0,3536.6,3536.0,0.05324173]
[1721612289349,3.0,3536.6,3536.1,0.05321154]
[1721612289532,1.17117146,3537.3,3536.1,0.05321154]
[1721612289533,0.58551018,3537.2,3536.4,2.82772]
[1721612289832,2.82697,3537.4,3536.5,2.88082506]
[1721612290130,2.82697,3537.4,3536.5,0.05319506]
[1721612290315,2.82697,3537.4,3536.3,2.88435019]
[1721612290517,2.82685,3537.5,3536.7,2.82747]
[1721612290698,2.82685,3537.5,3536.4,4.72276389]
[1721612290895,2.82685,3537.5,3536.6,2.8275]
[1721612291293,2.82685,3537.5,3536.7,0.05315953]
[1721612291499,2.93431018,3537.8,3536.7,2.88062953]
[1721612291500,2.82679,3537.6,3536.7,2.88062953]
[1721612291916,2.82679,3537.6,3536.9,2.4459]
[1721612292122,0.58551018,3537.9,3536.9,2.4459]
[1721612292432,0.58551018,3537.9,3537.0,0.05315835]
[1721612292594,2.82709,3537.2,3537.0,0.05315835]
[1721612292799,2.82709,3537.2,3536.5,2.4459]
[1721612293029,2.82709,3537.2,3536.6,0.60310534]
[1721612295523,0.58551018,3537.7,3536.6,0.05310534]
[1721612295524,2.3488,3537.4,3536.6,0.05310534]
[1721612295704,2.82748,3536.8,3536.6,0.05310534]
[1721612295904,2.82748,3536.8,3536.1,9.7459]
[1721612296325,2.82748,3536.8,3536.2,0.05312843]
[1721612296527,2.82766,3536.5,3536.2,0.05312843]